{"text_format":"1","workbook":"xlsx","n_sheets":3,"sheets":["handover.Form","DRIVER","All_Data"],"not_rendered":{"charts":0,"images":7,"macros":1,"external_links":1,"defined_names":7,"comments":1,"pivot_tables":0},"unopened":[],"bounds":{"document_bytes":16777216,"sheet_cells":100000,"rows_first":2000,"rows_last":500,"rows_between":2000,"halvings":0,"cell_chars":16384,"cell_head_chars":4096},"cells_cut":0,"cells_raw":0,"read":"whole","date_system":"1900"}

{"sheet":"handover.Form","index":0,"n_rows":54,"n_cols":20,"rows_kept":54,"cut":false,"hidden":false,"merged":[[7,2,7,3],[7,5,7,6],[7,8,7,9],[7,11,7,12],[8,2,8,3],[8,5,8,6],[8,8,8,9],[8,11,8,12],[52,0,52,11],[42,7,42,8],[42,9,42,10],[44,1,45,10],[49,2,49,4],[49,6,49,7],[49,9,49,10],[50,2,50,4],[50,6,50,7],[50,9,50,10],[51,2,51,4],[51,6,51,7]]}
[]
[]
[]
[]
[null,null,null,null,null,null,null,null,null,null,null,null,"التاريخ",{"$f":"TODAY()","v":"2022-11-14"}]
[null,"الكود","TT1",null,null,null,null,null,null,null,null,null,"الموقع",null,null,null,"مشاريع بيشة",null,null,"المطلوب عند كتابة الكودفي الخلية C6 تظهر بيانات المركبة من الشيت المسمى ALL_DATA"]
[null,null,null,null,null,null,null,null,null,null,null,null,null,null,null,null,"خلاطة خرسانة بيشة",null,null,"وعند كتابة الكود في الخلية C48 يتم احضار البيانات من الشيت المسمى DRIVER"]
[null,"رقم اللوحة","ب ر ا  8927",null,"اللون ","رصاصي",null,"رقم الهيكل ","WDB9302031L153554",null,"المالك",7009429445,null,null,null,null,"خلاطة خرسانة الصبيخة",null,null,"وبعد إضافة بيانات المستلم للمركبة يتم افراغ المحتواى الملون باللون الأصفر "]
[null,"وصف الاصل","وايت مياه - اكتروس",null,"الرقم التسلسلي ",17412710,null,"الموديل ",2007,null,"الترخيص","نقل خاص",null,null,null,null,"خلاطة اسفلت بيشة"]
[null,null,null,null,null,null,null,null,null,null,null,null,null,null,null,null,"خلاطة اسفلت الصبيخة"]
[null,null,null,null,null,null,null,null,null,null,null,null,null,null,null,null,"كسارة بيشة"]
[null,null,null,null,null,null,null,null,null,null,null,null,null,null,null,null,"كسارة الصبيخة"]
[null,null,null,null,null,null,null,null,null,null,null,null,null,null,null,null,"عقد 806"]
[null,null,null,null,null,null,null,null,null,null,null,null,null,null,null,null,"عقد 810"]
[null,null,null,null,null,null,null,null,null,null,null,null,null,null,null,null,"وقائي 8006"]
[null,null,null,null,null,null,null,null,null,null,null,null,null,null,null,null,"الإدارة"]
[]
[]
[]
[]
[]
[]
[]
[]
[]
[]
[]
[]
[]
[]
[]
[]
[]
[null,null,null,null,null,null,null,null,null,null,null,null,null,null,null,null,null,"حالة الماكينة"]
[]
[]
[]
[]
[]
[]
[]
[]
[null,null,null,null,null,null,null,"اعتماد الورشة",null,".............................."]
[null,null,null,null,"اقرار باستلام السيارة"]
[null," اقر انا مستلم الأصل المذكور أعلاه باننى استلمت الاصل بالحالة التى عليها وفقا لتقرير الورشة وعلية اكون مسئولا عنها من تاريخ الاستلام فى        /        /           وموقع العمل .........................وان اتبع تعليمات الصادرة من الادارة بخصوص استخدام السيارة "]
[]
[null,"المقربما فية ،،،،،"]
[null,"كود الموظف",4]
[]
[null,"اسم الموظف ","لياقت علي باجوا عنايت الله",null,null,"رقم الاقامة",2222222222,null,"رقم الجوال ",500000000]
[null,"مهنة الإقامة","سائق شاحنة",null,null,"حالة الموظف","على الكفالة",null,"رخصة القيادة","نقل ثقيل"]
[null,"المهنة الفعلية","سائق تريلا",null,null,"الجنسية","باكستان"]
[]
[null,"مسئول الحركة التوقيع :.......................................                                             التاريخ      /        /"]

{"sheet":"DRIVER","index":1,"n_rows":2,"n_cols":13,"rows_kept":2,"cut":false,"hidden":false,"merged":[]}
["كود الموظف ","م","رقم اقامة الموظف","اسم الموظف","الجنسية ","حالة الموظف","موقع العمل ","الحالة","رقم الجوال","مهنة الاقامة","المهنة الفعلية ","رخصة القيادة","تاريخ انتهاء الإقامة"]
[4,1,2222222222,"لياقت علي باجوا عنايت الله","باكستان","على الكفالة","نقليات - التريلات","على راس العمل ","0500000000","سائق شاحنة","سائق تريلا","نقل ثقيل","2022-08-29"]

{"sheet":"All_Data","index":2,"n_rows":154,"n_cols":43,"rows_kept":154,"cut":false,"hidden":false,"merged":[[1,0,1,4]]}
[]
["بيانات السيارات",null,null,null,null,null,null,null,{"$f":"TODAY()","v":"2022-11-14"},null,null,null,null,null,null,null,null,null,null,null,null,null,null,null,null,null,null,null,null,null,null,null,null,null,null,null,null,null,null,null,null,"الرقم التسلسلي","Rows"]
[null,null,null,null,null,null,null,null,null,null,null,null,null,null,null,null,null,null,null,null,null,null,null,null,null,null,null,null,null,null,null,null,null,null,null,null,null,null,null,null,null,2488345584,{"$f":"MATCH(AP3,#REF!,0)","v":{"$error":"#REF!"}}]
["م","كود المعدة","الرقم التسلسلي","الموقع","وصف الاصل","الموديل","اللون","رقم اللوحة","رقم الهيكل","المالك","الترخيص","ملاحظات",null,null,null,null,null,null,null,null,null,null,null,null,null,null,"الفحص ميلادي","المتبقي على الفحص","الاستمارة ميلادي","المتبقي على الاستمارة","التأمين ميلادي","المتبقي على التأمين","الرخصة ميلادي","المتبقي على رخصة القيادة","التفويض ميلادي","المتبقي على التفويض"]
[{"$f":"SUBTOTAL(3,$B$5:B5)","v":1},"TT1",17412710,"صيانة 810","وايت مياه - اكتروس",2007,"رصاصي","ب ر ا  8927","WDB9302031L153554",7009429445,"نقل خاص",null,null,null,null,null,null,null,null,null,null,null,null,null,null,null,null,{"$f":"I2-AC5","v":{"$error":"#NAME?"}},{"$f":"ConvertDate(#REF!)","v":{"$error":"#NAME?"}},null,{"$f":"ConvertDate(#REF!)","v":{"$error":"#NAME?"}},null,null,null,{"$f":"ConvertDate(#REF!)","v":{"$error":"#NAME?"}}]
[{"$f":"SUBTOTAL(3,$B$5:B6)","v":1},null,null,null,null,null,null,null,null,null,null,null,null,null,null,null,null,null,null,null,null,null,null,null,null,null,null,{"$error":"#NAME?"},{"$f":"ConvertDate(#REF!)","v":{"$error":"#NAME?"}},null,{"$f":"ConvertDate(#REF!)","v":{"$error":"#NAME?"}},null,null,null,{"$f":"ConvertDate(#REF!)","v":{"$error":"#NAME?"}}]
[{"$f":"SUBTOTAL(3,$B$5:B7)","v":1},null,null,null,null,null,null,null,null,null,null,null,null,null,null,null,null,null,null,null,null,null,null,null,null,null,null,{"$error":"#VALUE!"},{"$f":"ConvertDate(#REF!)","v":{"$error":"#NAME?"}},null,{"$f":"ConvertDate(#REF!)","v":{"$error":"#NAME?"}},null,null,null,{"$f":"ConvertDate(#REF!)","v":{"$error":"#NAME?"}}]
[{"$f":"SUBTOTAL(3,$B$5:B8)","v":1},null,null,null,null,null,null,null,null,null,null,null,null,null,null,null,null,null,null,null,null,null,null,null,null,null,null,{"$error":"#VALUE!"},{"$f":"ConvertDate(#REF!)","v":{"$error":"#NAME?"}},null,{"$f":"ConvertDate(#REF!)","v":{"$error":"#NAME?"}},null,null,null,{"$f":"ConvertDate(#REF!)","v":{"$error":"#NAME?"}}]
[{"$f":"SUBTOTAL(3,$B$5:B9)","v":1},null,null,null,null,null,null,null,null,null,null,null,null,null,null,null,null,null,null,null,null,null,null,null,null,null,null,{"$error":"#NAME?"},{"$f":"ConvertDate(#REF!)","v":{"$error":"#NAME?"}},null,{"$f":"ConvertDate(#REF!)","v":{"$error":"#NAME?"}},null,null,null,{"$f":"ConvertDate(#REF!)","v":{"$error":"#NAME?"}}]
[{"$f":"SUBTOTAL(3,$B$5:B10)","v":1},null,null,null,null,null,null,null,null,null,null,null,null,null,null,null,null,null,null,null,null,null,null,null,null,null,null,{"$error":"#NAME?"},{"$f":"ConvertDate(#REF!)","v":{"$error":"#NAME?"}},null,{"$f":"ConvertDate(#REF!)","v":{"$error":"#NAME?"}},null,null,null,{"$f":"ConvertDate(#REF!)","v":{"$error":"#NAME?"}}]
[{"$f":"SUBTOTAL(3,$B$5:B11)","v":1},null,null,null,null,null,null,null,null,null,null,null,null,null,null,null,null,null,null,null,null,null,null,null,null,null,null,{"$error":"#NAME?"},{"$f":"ConvertDate(#REF!)","v":{"$error":"#NAME?"}},null,{"$f":"ConvertDate(#REF!)","v":{"$error":"#NAME?"}},null,null,null,{"$f":"ConvertDate(#REF!)","v":{"$error":"#NAME?"}}]
[{"$f":"SUBTOTAL(3,$B$5:B12)","v":1},null,null,null,null,null,null,null,null,null,null,null,null,null,null,null,null,null,null,null,null,null,null,null,null,null,null,{"$error":"#NAME?"},{"$f":"ConvertDate(#REF!)","v":{"$error":"#NAME?"}},null,{"$f":"ConvertDate(#REF!)","v":{"$error":"#NAME?"}},null,null,null,{"$f":"ConvertDate(#REF!)","v":{"$error":"#NAME?"}}]
[{"$f":"SUBTOTAL(3,$B$5:B13)","v":1},null,null,null,null,null,null,null,null,null,null,null,null,null,null,null,null,null,null,null,null,null,null,null,null,null,null,{"$error":"#NAME?"},{"$f":"ConvertDate(#REF!)","v":{"$error":"#NAME?"}},null,{"$f":"ConvertDate(#REF!)","v":{"$error":"#NAME?"}},null,null,null,{"$f":"ConvertDate(#REF!)","v":{"$error":"#NAME?"}}]
[{"$f":"SUBTOTAL(3,$B$5:B14)","v":1},null,null,null,null,null,null,null,null,null,null,null,null,null,null,null,null,null,null,null,null,null,null,null,null,null,null,{"$error":"#NAME?"},{"$f":"ConvertDate(#REF!)","v":{"$error":"#NAME?"}},null,{"$f":"ConvertDate(#REF!)","v":{"$error":"#NAME?"}},null,null,null,{"$f":"ConvertDate(#REF!)","v":{"$error":"#NAME?"}}]
[{"$f":"SUBTOTAL(3,$B$5:B15)","v":1},null,null,null,null,null,null,null,null,null,null,null,null,null,null,null,null,null,null,null,null,null,null,null,null,null,null,{"$error":"#NAME?"},{"$f":"ConvertDate(#REF!)","v":{"$error":"#NAME?"}},null,{"$f":"ConvertDate(#REF!)","v":{"$error":"#NAME?"}},null,null,null,{"$f":"ConvertDate(#REF!)","v":{"$error":"#NAME?"}}]
[{"$f":"SUBTOTAL(3,$B$5:B16)","v":1},null,null,null,null,null,null,null,null,null,null,null,null,null,null,null,null,null,null,null,null,null,null,null,null,null,null,{"$error":"#NAME?"},{"$f":"ConvertDate(#REF!)","v":{"$error":"#NAME?"}},null,{"$f":"ConvertDate(#REF!)","v":{"$error":"#NAME?"}},null,null,null,{"$f":"ConvertDate(#REF!)","v":{"$error":"#NAME?"}}]
[{"$f":"SUBTOTAL(3,$B$5:B17)","v":1},null,null,null,null,null,null,null,null,null,null,null,null,null,null,null,null,null,null,null,null,null,null,null,null,null,null,{"$error":"#NAME?"},{"$f":"ConvertDate(#REF!)","v":{"$error":"#NAME?"}},null,{"$f":"ConvertDate(#REF!)","v":{"$error":"#NAME?"}},null,null,null,{"$f":"ConvertDate(#REF!)","v":{"$error":"#NAME?"}}]
[{"$f":"SUBTOTAL(3,$B$5:B18)","v":1},null,null,null,null,null,null,null,null,null,null,null,null,null,null,null,null,null,null,null,null,null,null,null,null,null,null,{"$error":"#NAME?"},{"$f":"ConvertDate(#REF!)","v":{"$error":"#NAME?"}},null,{"$f":"ConvertDate(#REF!)","v":{"$error":"#NAME?"}},null,null,null,{"$f":"ConvertDate(#REF!)","v":{"$error":"#NAME?"}}]
[{"$f":"SUBTOTAL(3,$B$5:B19)","v":1},null,null,null,null,null,null,null,null,null,null,null,null,null,null,null,null,null,null,null,null,null,null,null,null,null,null,{"$error":"#NAME?"},{"$f":"ConvertDate(#REF!)","v":{"$error":"#NAME?"}},null,{"$f":"ConvertDate(#REF!)","v":{"$error":"#NAME?"}},null,null,null,{"$f":"ConvertDate(#REF!)","v":{"$error":"#NAME?"}}]
[{"$f":"SUBTOTAL(3,$B$5:B20)","v":1},null,null,null,null,null,null,null,null,null,null,null,null,null,null,null,null,null,null,null,null,null,null,null,null,null,null,{"$error":"#NAME?"},{"$f":"ConvertDate(#REF!)","v":{"$error":"#NAME?"}},null,{"$f":"ConvertDate(#REF!)","v":{"$error":"#NAME?"}},null,null,null,{"$f":"ConvertDate(#REF!)","v":{"$error":"#NAME?"}}]
[{"$f":"SUBTOTAL(3,$B$5:B21)","v":1},null,null,null,null,null,null,null,null,null,null,null,null,null,null,null,null,null,null,null,null,null,null,null,null,null,null,{"$error":"#NAME?"},{"$f":"ConvertDate(#REF!)","v":{"$error":"#NAME?"}},null,{"$f":"ConvertDate(#REF!)","v":{"$error":"#NAME?"}},null,null,null,{"$f":"ConvertDate(#REF!)","v":{"$error":"#NAME?"}}]
[{"$f":"SUBTOTAL(3,$B$5:B22)","v":1},null,null,null,null,null,null,null,null,null,null,null,null,null,null,null,null,null,null,null,null,null,null,null,null,null,null,{"$error":"#NAME?"},{"$f":"ConvertDate(#REF!)","v":{"$error":"#NAME?"}},null,{"$f":"ConvertDate(#REF!)","v":{"$error":"#NAME?"}},null,null,null,{"$f":"ConvertDate(#REF!)","v":{"$error":"#NAME?"}}]
[{"$f":"SUBTOTAL(3,$B$5:B23)","v":1},null,null,null,null,null,null,null,null,null,null,null,null,null,null,null,null,null,null,null,null,null,null,null,null,null,null,{"$error":"#NAME?"},{"$f":"ConvertDate(#REF!)","v":{"$error":"#NAME?"}},null,{"$f":"ConvertDate(#REF!)","v":{"$error":"#NAME?"}},null,null,null,{"$f":"ConvertDate(#REF!)","v":{"$error":"#NAME?"}}]
[{"$f":"SUBTOTAL(3,$B$5:B24)","v":1},null,null,null,null,null,null,null,null,null,null,null,null,null,null,null,null,null,null,null,null,null,null,null,null,null,null,{"$error":"#NAME?"},{"$f":"ConvertDate(#REF!)","v":{"$error":"#NAME?"}},null,{"$f":"ConvertDate(#REF!)","v":{"$error":"#NAME?"}},null,null,null,{"$f":"ConvertDate(#REF!)","v":{"$error":"#NAME?"}}]
[{"$f":"SUBTOTAL(3,$B$5:B25)","v":1},null,null,null,null,null,null,null,null,null,null,null,null,null,null,null,null,null,null,null,null,null,null,null,null,null,null,{"$error":"#NAME?"},{"$f":"ConvertDate(#REF!)","v":{"$error":"#NAME?"}},null,{"$f":"ConvertDate(#REF!)","v":{"$error":"#NAME?"}},null,null,null,{"$f":"ConvertDate(#REF!)","v":{"$error":"#NAME?"}}]
[{"$f":"SUBTOTAL(3,$B$5:B26)","v":1},null,null,null,null,null,null,null,null,null,null,null,null,null,null,null,null,null,null,null,null,null,null,null,null,null,null,{"$error":"#NAME?"},{"$f":"ConvertDate(#REF!)","v":{"$error":"#NAME?"}},null,{"$f":"ConvertDate(#REF!)","v":{"$error":"#NAME?"}},null,null,null,{"$f":"ConvertDate(#REF!)","v":{"$error":"#NAME?"}}]
[{"$f":"SUBTOTAL(3,$B$5:B27)","v":1},null,null,null,null,null,null,null,null,null,null,null,null,null,null,null,null,null,null,null,null,null,null,null,null,null,null,{"$error":"#NAME?"},{"$f":"ConvertDate(#REF!)","v":{"$error":"#NAME?"}},null,{"$f":"ConvertDate(#REF!)","v":{"$error":"#NAME?"}},null,null,null,{"$f":"ConvertDate(#REF!)","v":{"$error":"#NAME?"}}]
[{"$f":"SUBTOTAL(3,$B$5:B28)","v":1},null,null,null,null,null,null,null,null,null,null,null,null,null,null,null,null,null,null,null,null,null,null,null,null,null,null,{"$error":"#NAME?"},{"$f":"ConvertDate(#REF!)","v":{"$error":"#NAME?"}},null,{"$f":"ConvertDate(#REF!)","v":{"$error":"#NAME?"}},null,null,null,{"$f":"ConvertDate(#REF!)","v":{"$error":"#NAME?"}}]
[{"$f":"SUBTOTAL(3,$B$5:B29)","v":1},null,null,null,null,null,null,null,null,null,null,null,null,null,null,null,null,null,null,null,null,null,null,null,null,null,null,{"$error":"#NAME?"},{"$f":"ConvertDate(#REF!)","v":{"$error":"#NAME?"}},null,{"$f":"ConvertDate(#REF!)","v":{"$error":"#NAME?"}},null,null,null,{"$f":"ConvertDate(#REF!)","v":{"$error":"#NAME?"}}]
[{"$f":"SUBTOTAL(3,$B$5:B30)","v":1},null,null,null,null,null,null,null,null,null,null,null,null,null,null,null,null,null,null,null,null,null,null,null,null,null,null,{"$error":"#NAME?"},{"$f":"ConvertDate(#REF!)","v":{"$error":"#NAME?"}},null,{"$f":"ConvertDate(#REF!)","v":{"$error":"#NAME?"}},null,null,null,{"$f":"ConvertDate(#REF!)","v":{"$error":"#NAME?"}}]
[{"$f":"SUBTOTAL(3,$B$5:B31)","v":1},null,null,null,null,null,null,null,null,null,null,null,null,null,null,null,null,null,null,null,null,null,null,null,null,null,null,{"$error":"#NAME?"},{"$f":"ConvertDate(#REF!)","v":{"$error":"#NAME?"}},null,{"$f":"ConvertDate(#REF!)","v":{"$error":"#NAME?"}},null,null,null,{"$f":"ConvertDate(#REF!)","v":{"$error":"#NAME?"}}]
[{"$f":"SUBTOTAL(3,$B$5:B32)","v":1},null,null,null,null,null,null,null,null,null,null,null,null,null,null,null,null,null,null,null,null,null,null,null,null,null,null,{"$error":"#NAME?"},{"$f":"ConvertDate(#REF!)","v":{"$error":"#NAME?"}},null,{"$f":"ConvertDate(#REF!)","v":{"$error":"#NAME?"}},null,null,null,{"$f":"ConvertDate(#REF!)","v":{"$error":"#NAME?"}}]
[{"$f":"SUBTOTAL(3,$B$5:B33)","v":1},null,null,null,null,null,null,null,null,null,null,null,null,null,null,null,null,null,null,null,null,null,null,null,null,null,null,{"$error":"#NAME?"},{"$f":"ConvertDate(#REF!)","v":{"$error":"#NAME?"}},null,{"$f":"ConvertDate(#REF!)","v":{"$error":"#NAME?"}},null,null,null,{"$f":"ConvertDate(#REF!)","v":{"$error":"#NAME?"}}]
[{"$f":"SUBTOTAL(3,$B$5:B34)","v":1},null,null,null,null,null,null,null,null,null,null,null,null,null,null,null,null,null,null,null,null,null,null,null,null,null,null,{"$error":"#NAME?"},{"$f":"ConvertDate(#REF!)","v":{"$error":"#NAME?"}},null,{"$f":"ConvertDate(#REF!)","v":{"$error":"#NAME?"}},null,null,null,{"$f":"ConvertDate(#REF!)","v":{"$error":"#NAME?"}}]
[{"$f":"SUBTOTAL(3,$B$5:B35)","v":1},null,null,null,null,null,null,null,null,null,null,null,null,null,null,null,null,null,null,null,null,null,null,null,null,null,null,{"$error":"#NAME?"},{"$f":"ConvertDate(#REF!)","v":{"$error":"#NAME?"}},null,{"$f":"ConvertDate(#REF!)","v":{"$error":"#NAME?"}},null,null,null,{"$f":"ConvertDate(#REF!)","v":{"$error":"#NAME?"}}]
[{"$f":"SUBTOTAL(3,$B$5:B36)","v":1},null,null,null,null,null,null,null,null,null,null,null,null,null,null,null,null,null,null,null,null,null,null,null,null,null,null,{"$error":"#NAME?"},{"$f":"ConvertDate(#REF!)","v":{"$error":"#NAME?"}},null,{"$f":"ConvertDate(#REF!)","v":{"$error":"#NAME?"}},null,null,null,{"$f":"ConvertDate(#REF!)","v":{"$error":"#NAME?"}}]
[{"$f":"SUBTOTAL(3,$B$5:B37)","v":1},null,null,null,null,null,null,null,null,null,null,null,null,null,null,null,null,null,null,null,null,null,null,null,null,null,null,{"$f":"I34-AC37","v":{"$error":"#NAME?"}},{"$f":"ConvertDate(#REF!)","v":{"$error":"#NAME?"}},null,{"$f":"ConvertDate(#REF!)","v":{"$error":"#NAME?"}},null,null,null,{"$f":"ConvertDate(#REF!)","v":{"$error":"#NAME?"}}]
[{"$f":"SUBTOTAL(3,$B$5:B38)","v":1},null,null,null,null,null,null,null,null,null,null,null,null,null,null,null,null,null,null,null,null,null,null,null,null,null,null,{"$error":"#NAME?"},{"$f":"ConvertDate(#REF!)","v":{"$error":"#NAME?"}},null,{"$f":"ConvertDate(#REF!)","v":{"$error":"#NAME?"}},null,null,null,{"$f":"ConvertDate(#REF!)","v":{"$error":"#NAME?"}}]
[{"$f":"SUBTOTAL(3,$B$5:B39)","v":1},null,null,null,null,null,null,null,null,null,null,null,null,null,null,null,null,null,null,null,null,null,null,null,null,null,null,{"$error":"#NAME?"},{"$f":"ConvertDate(#REF!)","v":{"$error":"#NAME?"}},null,{"$f":"ConvertDate(#REF!)","v":{"$error":"#NAME?"}},null,null,null,{"$f":"ConvertDate(#REF!)","v":{"$error":"#NAME?"}}]
[{"$f":"SUBTOTAL(3,$B$5:B40)","v":1},null,null,null,null,null,null,null,null,null,null,null,null,null,null,null,null,null,null,null,null,null,null,null,null,null,null,{"$error":"#NAME?"},{"$f":"ConvertDate(#REF!)","v":{"$error":"#NAME?"}},null,{"$f":"ConvertDate(#REF!)","v":{"$error":"#NAME?"}},null,null,null,{"$f":"ConvertDate(#REF!)","v":{"$error":"#NAME?"}}]
[{"$f":"SUBTOTAL(3,$B$5:B41)","v":1},null,null,null,null,null,null,null,null,null,null,null,null,null,null,null,null,null,null,null,null,null,null,null,null,null,null,{"$error":"#NAME?"},{"$f":"ConvertDate(#REF!)","v":{"$error":"#NAME?"}},null,{"$f":"ConvertDate(#REF!)","v":{"$error":"#NAME?"}},null,null,null,{"$f":"ConvertDate(#REF!)","v":{"$error":"#NAME?"}}]
[{"$f":"SUBTOTAL(3,$B$5:B42)","v":1},null,null,null,null,null,null,null,null,null,null,null,null,null,null,null,null,null,null,null,null,null,null,null,null,null,null,{"$error":"#NAME?"},{"$f":"ConvertDate(#REF!)","v":{"$error":"#NAME?"}},null,{"$f":"ConvertDate(#REF!)","v":{"$error":"#NAME?"}},null,null,null,{"$f":"ConvertDate(#REF!)","v":{"$error":"#NAME?"}}]
[{"$f":"SUBTOTAL(3,$B$5:B43)","v":1},null,null,null,null,null,null,null,null,null,null,null,null,null,null,null,null,null,null,null,null,null,null,null,null,null,null,{"$error":"#NAME?"},{"$f":"ConvertDate(#REF!)","v":{"$error":"#NAME?"}},null,{"$f":"ConvertDate(#REF!)","v":{"$error":"#NAME?"}},null,null,null,{"$f":"ConvertDate(#REF!)","v":{"$error":"#NAME?"}}]
[{"$f":"SUBTOTAL(3,$B$5:B44)","v":1},null,null,null,null,null,null,null,null,null,null,null,null,null,null,null,null,null,null,null,null,null,null,null,null,null,null,{"$error":"#NAME?"},{"$f":"ConvertDate(#REF!)","v":{"$error":"#NAME?"}},null,{"$f":"ConvertDate(#REF!)","v":{"$error":"#NAME?"}},null,null,null,{"$f":"ConvertDate(#REF!)","v":{"$error":"#NAME?"}}]
[{"$f":"SUBTOTAL(3,$B$5:B45)","v":1},null,null,null,null,null,null,null,null,null,null,null,null,null,null,null,null,null,null,null,null,null,null,null,null,null,null,{"$error":"#NAME?"},{"$f":"ConvertDate(#REF!)","v":{"$error":"#NAME?"}},null,{"$f":"ConvertDate(#REF!)","v":{"$error":"#NAME?"}},null,null,null,{"$f":"ConvertDate(#REF!)","v":{"$error":"#NAME?"}}]
[{"$f":"SUBTOTAL(3,$B$5:B46)","v":1},null,null,null,null,null,null,null,null,null,null,null,null,null,null,null,null,null,null,null,null,null,null,null,null,null,null,{"$error":"#NAME?"},{"$f":"ConvertDate(#REF!)","v":{"$error":"#NAME?"}},null,{"$f":"ConvertDate(#REF!)","v":{"$error":"#NAME?"}},null,null,null,{"$f":"ConvertDate(#REF!)","v":{"$error":"#NAME?"}}]
[{"$f":"SUBTOTAL(3,$B$5:B46)","v":1},null,null,null,null,null,null,null,null,null,null,null,null,null,null,null,null,null,null,null,null,null,null,null,null,null,null,{"$error":"#NAME?"},{"$f":"ConvertDate(#REF!)","v":{"$error":"#NAME?"}},null,{"$f":"ConvertDate(#REF!)","v":{"$error":"#NAME?"}},null,null,null,{"$f":"ConvertDate(#REF!)","v":{"$error":"#NAME?"}}]
[{"$f":"SUBTOTAL(3,$B$5:B47)","v":1},null,null,null,null,null,null,null,null,null,null,null,null,null,null,null,null,null,null,null,null,null,null,null,null,null,null,{"$error":"#NAME?"},{"$f":"ConvertDate(#REF!)","v":{"$error":"#NAME?"}},null,{"$f":"ConvertDate(#REF!)","v":{"$error":"#NAME?"}},null,null,null,{"$f":"ConvertDate(#REF!)","v":{"$error":"#NAME?"}}]
[{"$f":"SUBTOTAL(3,$B$5:B48)","v":1},null,null,null,null,null,null,null,null,null,null,null,null,null,null,null,null,null,null,null,null,null,null,null,null,null,null,{"$error":"#NAME?"},{"$f":"ConvertDate(#REF!)","v":{"$error":"#NAME?"}},null,{"$f":"ConvertDate(#REF!)","v":{"$error":"#NAME?"}},null,null,null,{"$f":"ConvertDate(#REF!)","v":{"$error":"#NAME?"}}]
[{"$f":"SUBTOTAL(3,$B$5:B49)","v":1},null,null,null,null,null,null,null,null,null,null,null,null,null,null,null,null,null,null,null,null,null,null,null,null,null,null,{"$error":"#NAME?"},{"$f":"ConvertDate(#REF!)","v":{"$error":"#NAME?"}},null,{"$f":"ConvertDate(#REF!)","v":{"$error":"#NAME?"}},null,null,null,{"$f":"ConvertDate(#REF!)","v":{"$error":"#NAME?"}}]
[{"$f":"SUBTOTAL(3,$B$5:B50)","v":1},null,null,null,null,null,null,null,null,null,null,null,null,null,null,null,null,null,null,null,null,null,null,null,null,null,null,{"$error":"#NAME?"},{"$f":"ConvertDate(#REF!)","v":{"$error":"#NAME?"}},null,{"$f":"ConvertDate(#REF!)","v":{"$error":"#NAME?"}},null,null,null,{"$f":"ConvertDate(#REF!)","v":{"$error":"#NAME?"}}]
[{"$f":"SUBTOTAL(3,$B$5:B51)","v":1},null,null,null,null,null,null,null,null,null,null,null,null,null,null,null,null,null,null,null,null,null,null,null,null,null,null,{"$error":"#NAME?"},{"$f":"ConvertDate(#REF!)","v":{"$error":"#NAME?"}},null,{"$f":"ConvertDate(#REF!)","v":{"$error":"#NAME?"}},null,null,null,{"$f":"ConvertDate(#REF!)","v":{"$error":"#NAME?"}}]
[{"$f":"SUBTOTAL(3,$B$5:B52)","v":1},null,null,null,null,null,null,null,null,null,null,null,null,null,null,null,null,null,null,null,null,null,null,null,null,null,null,{"$error":"#NAME?"},{"$f":"ConvertDate(#REF!)","v":{"$error":"#NAME?"}},null,{"$f":"ConvertDate(#REF!)","v":{"$error":"#NAME?"}},null,null,null,{"$f":"ConvertDate(#REF!)","v":{"$error":"#NAME?"}}]
[{"$f":"SUBTOTAL(3,$B$5:B53)","v":1},null,null,null,null,null,null,null,null,null,null,null,null,null,null,null,null,null,null,null,null,null,null,null,null,null,null,{"$error":"#NAME?"},{"$f":"ConvertDate(#REF!)","v":{"$error":"#NAME?"}},null,{"$f":"ConvertDate(#REF!)","v":{"$error":"#NAME?"}},null,null,null,{"$f":"ConvertDate(#REF!)","v":{"$error":"#NAME?"}}]
[{"$f":"SUBTOTAL(3,$B$5:B54)","v":1},null,null,null,null,null,null,null,null,null,null,null,null,null,null,null,null,null,null,null,null,null,null,null,null,null,null,{"$error":"#NAME?"},{"$f":"ConvertDate(#REF!)","v":{"$error":"#NAME?"}},null,{"$f":"ConvertDate(#REF!)","v":{"$error":"#NAME?"}},null,null,null,{"$f":"ConvertDate(#REF!)","v":{"$error":"#NAME?"}}]
[{"$f":"SUBTOTAL(3,$B$5:B55)","v":1},null,null,null,null,null,null,null,null,null,null,null,null,null,null,null,null,null,null,null,null,null,null,null,null,null,null,{"$error":"#NAME?"},{"$f":"ConvertDate(#REF!)","v":{"$error":"#NAME?"}},null,{"$f":"ConvertDate(#REF!)","v":{"$error":"#NAME?"}},null,null,null,{"$f":"ConvertDate(#REF!)","v":{"$error":"#NAME?"}}]
[{"$f":"SUBTOTAL(3,$B$5:B56)","v":1},null,null,null,null,null,null,null,null,null,null,null,null,null,null,null,null,null,null,null,null,null,null,null,null,null,null,{"$error":"#NAME?"},{"$f":"ConvertDate(#REF!)","v":{"$error":"#NAME?"}},null,{"$f":"ConvertDate(#REF!)","v":{"$error":"#NAME?"}},null,null,null,{"$f":"ConvertDate(#REF!)","v":{"$error":"#NAME?"}}]
[{"$f":"SUBTOTAL(3,$B$5:B57)","v":1},null,null,null,null,null,null,null,null,null,null,null,null,null,null,null,null,null,null,null,null,null,null,null,null,null,null,{"$error":"#NAME?"},{"$f":"ConvertDate(#REF!)","v":{"$error":"#NAME?"}},null,{"$f":"ConvertDate(#REF!)","v":{"$error":"#NAME?"}},null,null,null,{"$f":"ConvertDate(#REF!)","v":{"$error":"#NAME?"}}]
[{"$f":"SUBTOTAL(3,$B$5:B58)","v":1},null,null,null,null,null,null,null,null,null,null,null,null,null,null,null,null,null,null,null,null,null,null,null,null,null,null,{"$error":"#NAME?"},{"$f":"ConvertDate(#REF!)","v":{"$error":"#NAME?"}},null,{"$f":"ConvertDate(#REF!)","v":{"$error":"#NAME?"}},null,null,null,{"$f":"ConvertDate(#REF!)","v":{"$error":"#NAME?"}}]
[{"$f":"SUBTOTAL(3,$B$5:B59)","v":1},null,null,null,null,null,null,null,null,null,null,null,null,null,null,null,null,null,null,null,null,null,null,null,null,null,null,{"$error":"#NAME?"},{"$f":"ConvertDate(#REF!)","v":{"$error":"#NAME?"}},null,{"$f":"ConvertDate(#REF!)","v":{"$error":"#NAME?"}},null,null,null,{"$f":"ConvertDate(#REF!)","v":{"$error":"#NAME?"}}]
[{"$f":"SUBTOTAL(3,$B$5:B60)","v":1},null,null,null,null,null,null,null,null,null,null,null,null,null,null,null,null,null,null,null,null,null,null,null,null,null,null,{"$error":"#NAME?"},{"$f":"ConvertDate(#REF!)","v":{"$error":"#NAME?"}},null,{"$f":"ConvertDate(#REF!)","v":{"$error":"#NAME?"}},null,null,null,{"$f":"ConvertDate(#REF!)","v":{"$error":"#NAME?"}}]
[{"$f":"SUBTOTAL(3,$B$5:B61)","v":1},null,null,null,null,null,null,null,null,null,null,null,null,null,null,null,null,null,null,null,null,null,null,null,null,null,null,{"$error":"#NAME?"},{"$f":"ConvertDate(#REF!)","v":{"$error":"#NAME?"}},null,{"$f":"ConvertDate(#REF!)","v":{"$error":"#NAME?"}},null,null,null,{"$f":"ConvertDate(#REF!)","v":{"$error":"#NAME?"}}]
[{"$f":"SUBTOTAL(3,$B$5:B62)","v":1},null,null,null,null,null,null,null,null,null,null,null,null,null,null,null,null,null,null,null,null,null,null,null,null,null,null,{"$error":"#NAME?"},{"$f":"ConvertDate(#REF!)","v":{"$error":"#NAME?"}},null,{"$f":"ConvertDate(#REF!)","v":{"$error":"#NAME?"}},null,null,null,{"$f":"ConvertDate(#REF!)","v":{"$error":"#NAME?"}}]
[{"$f":"SUBTOTAL(3,$B$5:B63)","v":1},null,null,null,null,null,null,null,null,null,null,null,null,null,null,null,null,null,null,null,null,null,null,null,null,null,null,{"$error":"#NAME?"},{"$f":"ConvertDate(#REF!)","v":{"$error":"#NAME?"}},null,{"$f":"ConvertDate(#REF!)","v":{"$error":"#NAME?"}},null,null,null,{"$f":"ConvertDate(#REF!)","v":{"$error":"#NAME?"}}]
[{"$f":"SUBTOTAL(3,$B$5:B64)","v":1},null,null,null,null,null,null,null,null,null,null,null,null,null,null,null,null,null,null,null,null,null,null,null,null,null,null,{"$error":"#NAME?"},{"$f":"ConvertDate(#REF!)","v":{"$error":"#NAME?"}},null,{"$f":"ConvertDate(#REF!)","v":{"$error":"#NAME?"}},null,null,null,{"$f":"ConvertDate(#REF!)","v":{"$error":"#NAME?"}}]
[{"$f":"SUBTOTAL(3,$B$5:B65)","v":1},null,null,null,null,null,null,null,null,null,null,null,null,null,null,null,null,null,null,null,null,null,null,null,null,null,null,{"$error":"#NAME?"},{"$f":"ConvertDate(#REF!)","v":{"$error":"#NAME?"}},null,{"$f":"ConvertDate(#REF!)","v":{"$error":"#NAME?"}},null,null,null,{"$f":"ConvertDate(#REF!)","v":{"$error":"#NAME?"}}]
[{"$f":"SUBTOTAL(3,$B$5:B66)","v":1},null,null,null,null,null,null,null,null,null,null,null,null,null,null,null,null,null,null,null,null,null,null,null,null,null,null,{"$error":"#NAME?"},{"$f":"ConvertDate(#REF!)","v":{"$error":"#NAME?"}},null,{"$f":"ConvertDate(#REF!)","v":{"$error":"#NAME?"}},null,null,null,{"$f":"ConvertDate(#REF!)","v":{"$error":"#NAME?"}}]
[{"$f":"SUBTOTAL(3,$B$5:B67)","v":1},null,null,null,null,null,null,null,null,null,null,null,null,null,null,null,null,null,null,null,null,null,null,null,null,null,null,{"$error":"#NAME?"},{"$f":"ConvertDate(#REF!)","v":{"$error":"#NAME?"}},null,{"$f":"ConvertDate(#REF!)","v":{"$error":"#NAME?"}},null,null,null,{"$f":"ConvertDate(#REF!)","v":{"$error":"#NAME?"}}]
[{"$f":"SUBTOTAL(3,$B$5:B68)","v":1},null,null,null,null,null,null,null,null,null,null,null,null,null,null,null,null,null,null,null,null,null,null,null,null,null,null,{"$f":"I66-AC69","v":{"$error":"#NAME?"}},{"$f":"ConvertDate(#REF!)","v":{"$error":"#NAME?"}},null,{"$f":"ConvertDate(#REF!)","v":{"$error":"#NAME?"}},null,null,null,{"$f":"ConvertDate(#REF!)","v":{"$error":"#NAME?"}}]
[{"$f":"SUBTOTAL(3,$B$5:B69)","v":1},null,null,null,null,null,null,null,null,null,null,null,null,null,null,null,null,null,null,null,null,null,null,null,null,null,null,{"$error":"#NAME?"},{"$f":"ConvertDate(#REF!)","v":{"$error":"#NAME?"}},null,{"$f":"ConvertDate(#REF!)","v":{"$error":"#NAME?"}},null,null,null,{"$f":"ConvertDate(#REF!)","v":{"$error":"#NAME?"}}]
[{"$f":"SUBTOTAL(3,$B$5:B70)","v":1},null,null,null,null,null,null,null,null,null,null,null,null,null,null,null,null,null,null,null,null,null,null,null,null,null,null,{"$error":"#NAME?"},{"$f":"ConvertDate(#REF!)","v":{"$error":"#NAME?"}},null,{"$f":"ConvertDate(#REF!)","v":{"$error":"#NAME?"}},null,null,null,{"$f":"ConvertDate(#REF!)","v":{"$error":"#NAME?"}}]
[{"$f":"SUBTOTAL(3,$B$5:B71)","v":1},null,null,null,null,null,null,null,null,null,null,null,null,null,null,null,null,null,null,null,null,null,null,null,null,null,null,{"$error":"#NAME?"},{"$f":"ConvertDate(#REF!)","v":{"$error":"#NAME?"}},null,{"$f":"ConvertDate(#REF!)","v":{"$error":"#NAME?"}},null,null,null,{"$f":"ConvertDate(#REF!)","v":{"$error":"#NAME?"}}]
[{"$f":"SUBTOTAL(3,$B$5:B72)","v":1},null,null,null,null,null,null,null,null,null,null,null,null,null,null,null,null,null,null,null,null,null,null,null,null,null,null,{"$error":"#NAME?"},{"$f":"ConvertDate(#REF!)","v":{"$error":"#NAME?"}},null,{"$f":"ConvertDate(#REF!)","v":{"$error":"#NAME?"}},null,null,null,{"$f":"ConvertDate(#REF!)","v":{"$error":"#NAME?"}}]
[{"$f":"SUBTOTAL(3,$B$5:B73)","v":1},null,null,null,null,null,null,null,null,null,null,null,null,null,null,null,null,null,null,null,null,null,null,null,null,null,null,{"$error":"#NAME?"},{"$f":"ConvertDate(#REF!)","v":{"$error":"#NAME?"}},null,{"$f":"ConvertDate(#REF!)","v":{"$error":"#NAME?"}},null,null,null,{"$f":"ConvertDate(#REF!)","v":{"$error":"#NAME?"}}]
[{"$f":"SUBTOTAL(3,$B$5:B74)","v":1},null,null,null,null,null,null,null,null,null,null,null,null,null,null,null,null,null,null,null,null,null,null,null,null,null,null,{"$error":"#NAME?"},{"$f":"ConvertDate(#REF!)","v":{"$error":"#NAME?"}},null,{"$f":"ConvertDate(#REF!)","v":{"$error":"#NAME?"}},null,null,null,{"$f":"ConvertDate(#REF!)","v":{"$error":"#NAME?"}}]
[{"$f":"SUBTOTAL(3,$B$5:B75)","v":1},null,null,null,null,null,null,null,null,null,null,null,null,null,null,null,null,null,null,null,null,null,null,null,null,null,null,{"$error":"#NAME?"},{"$f":"ConvertDate(#REF!)","v":{"$error":"#NAME?"}},null,{"$f":"ConvertDate(#REF!)","v":{"$error":"#NAME?"}},null,null,null,{"$f":"ConvertDate(#REF!)","v":{"$error":"#NAME?"}}]
[{"$f":"SUBTOTAL(3,$B$5:B76)","v":1},null,null,null,null,null,null,null,null,null,null,null,null,null,null,null,null,null,null,null,null,null,null,null,null,null,null,{"$error":"#NAME?"},{"$f":"ConvertDate(#REF!)","v":{"$error":"#NAME?"}},null,{"$f":"ConvertDate(#REF!)","v":{"$error":"#NAME?"}},null,null,null,{"$f":"ConvertDate(#REF!)","v":{"$error":"#NAME?"}}]
[{"$f":"SUBTOTAL(3,$B$5:B77)","v":1},null,null,null,null,null,null,null,null,null,null,null,null,null,null,null,null,null,null,null,null,null,null,null,null,null,null,{"$error":"#NAME?"},{"$f":"ConvertDate(#REF!)","v":{"$error":"#NAME?"}},null,{"$f":"ConvertDate(#REF!)","v":{"$error":"#NAME?"}},null,null,null,{"$f":"ConvertDate(#REF!)","v":{"$error":"#NAME?"}}]
[{"$f":"SUBTOTAL(3,$B$5:B78)","v":1},null,null,null,null,null,null,null,null,null,null,null,null,null,null,null,null,null,null,null,null,null,null,null,null,null,null,{"$error":"#NAME?"},{"$f":"ConvertDate(#REF!)","v":{"$error":"#NAME?"}},null,{"$f":"ConvertDate(#REF!)","v":{"$error":"#NAME?"}},null,null,null,{"$f":"ConvertDate(#REF!)","v":{"$error":"#NAME?"}}]
[{"$f":"SUBTOTAL(3,$B$5:B79)","v":1},null,null,null,null,null,null,null,null,null,null,null,null,null,null,null,null,null,null,null,null,null,null,null,null,null,null,{"$error":"#NAME?"},{"$f":"ConvertDate(#REF!)","v":{"$error":"#NAME?"}},null,{"$f":"ConvertDate(#REF!)","v":{"$error":"#NAME?"}},null,null,null,{"$f":"ConvertDate(#REF!)","v":{"$error":"#NAME?"}}]
[{"$f":"SUBTOTAL(3,$B$5:B80)","v":1},null,null,null,null,null,null,null,null,null,null,null,null,null,null,null,null,null,null,null,null,null,null,null,null,null,null,{"$error":"#NAME?"},{"$f":"ConvertDate(#REF!)","v":{"$error":"#NAME?"}},null,{"$f":"ConvertDate(#REF!)","v":{"$error":"#NAME?"}},null,null,null,{"$f":"ConvertDate(#REF!)","v":{"$error":"#NAME?"}}]
[{"$f":"SUBTOTAL(3,$B$5:B81)","v":1},null,null,null,null,null,null,null,null,null,null,null,null,null,null,null,null,null,null,null,null,null,null,null,null,null,null,{"$error":"#NAME?"},{"$f":"ConvertDate(#REF!)","v":{"$error":"#NAME?"}},null,{"$f":"ConvertDate(#REF!)","v":{"$error":"#NAME?"}},null,null,null,{"$f":"ConvertDate(#REF!)","v":{"$error":"#NAME?"}}]
[{"$f":"SUBTOTAL(3,$B$5:B82)","v":1},null,null,null,null,null,null,null,null,null,null,null,null,null,null,null,null,null,null,null,null,null,null,null,null,null,null,{"$error":"#NAME?"},{"$f":"ConvertDate(#REF!)","v":{"$error":"#NAME?"}},null,{"$f":"ConvertDate(#REF!)","v":{"$error":"#NAME?"}},null,null,null,{"$f":"ConvertDate(#REF!)","v":{"$error":"#NAME?"}}]
[{"$f":"SUBTOTAL(3,$B$5:B83)","v":1},null,null,null,null,null,null,null,null,null,null,null,null,null,null,null,null,null,null,null,null,null,null,null,null,null,null,{"$error":"#NAME?"},{"$f":"ConvertDate(#REF!)","v":{"$error":"#NAME?"}},null,{"$f":"ConvertDate(#REF!)","v":{"$error":"#NAME?"}},null,null,null,{"$f":"ConvertDate(#REF!)","v":{"$error":"#NAME?"}}]
[{"$f":"SUBTOTAL(3,$B$5:B84)","v":1},null,null,null,null,null,null,null,null,null,null,null,null,null,null,null,null,null,null,null,null,null,null,null,null,null,null,{"$error":"#NAME?"},{"$f":"ConvertDate(#REF!)","v":{"$error":"#NAME?"}},null,{"$f":"ConvertDate(#REF!)","v":{"$error":"#NAME?"}},null,null,null,{"$f":"ConvertDate(#REF!)","v":{"$error":"#NAME?"}}]
[{"$f":"SUBTOTAL(3,$B$5:B85)","v":1},null,null,null,null,null,null,null,null,null,null,null,null,null,null,null,null,null,null,null,null,null,null,null,null,null,null,{"$error":"#NAME?"},{"$f":"ConvertDate(#REF!)","v":{"$error":"#NAME?"}},null,{"$f":"ConvertDate(#REF!)","v":{"$error":"#NAME?"}},null,null,null,{"$f":"ConvertDate(#REF!)","v":{"$error":"#NAME?"}}]
[{"$f":"SUBTOTAL(3,$B$5:B86)","v":1},null,null,null,null,null,null,null,null,null,null,null,null,null,null,null,null,null,null,null,null,null,null,null,null,null,null,{"$error":"#NAME?"},{"$f":"ConvertDate(#REF!)","v":{"$error":"#NAME?"}},null,{"$f":"ConvertDate(#REF!)","v":{"$error":"#NAME?"}},null,null,null,{"$f":"ConvertDate(#REF!)","v":{"$error":"#NAME?"}}]
[{"$f":"SUBTOTAL(3,$B$5:B87)","v":1},null,null,null,null,null,null,null,null,null,null,null,null,null,null,null,null,null,null,null,null,null,null,null,null,null,null,{"$error":"#NAME?"},{"$f":"ConvertDate(#REF!)","v":{"$error":"#NAME?"}},null,{"$f":"ConvertDate(#REF!)","v":{"$error":"#NAME?"}},null,null,null,{"$f":"ConvertDate(#REF!)","v":{"$error":"#NAME?"}}]
[{"$f":"SUBTOTAL(3,$B$5:B88)","v":1},null,null,null,null,null,null,null,null,null,null,null,null,null,null,null,null,null,null,null,null,null,null,null,null,null,null,{"$error":"#NAME?"},{"$f":"ConvertDate(#REF!)","v":{"$error":"#NAME?"}},null,{"$f":"ConvertDate(#REF!)","v":{"$error":"#NAME?"}},null,null,null,{"$f":"ConvertDate(#REF!)","v":{"$error":"#NAME?"}}]
[{"$f":"SUBTOTAL(3,$B$5:B89)","v":1},null,null,null,null,null,null,null,null,null,null,null,null,null,null,null,null,null,null,null,null,null,null,null,null,null,null,{"$error":"#NAME?"},{"$f":"ConvertDate(#REF!)","v":{"$error":"#NAME?"}},null,{"$f":"ConvertDate(#REF!)","v":{"$error":"#NAME?"}},null,null,null,{"$f":"ConvertDate(#REF!)","v":{"$error":"#NAME?"}}]
[{"$f":"SUBTOTAL(3,$B$5:B90)","v":1},null,null,null,null,null,null,null,null,null,null,null,null,null,null,null,null,null,null,null,null,null,null,null,null,null,null,{"$error":"#NAME?"},{"$f":"ConvertDate(#REF!)","v":{"$error":"#NAME?"}},null,{"$f":"ConvertDate(#REF!)","v":{"$error":"#NAME?"}},null,null,null,{"$f":"ConvertDate(#REF!)","v":{"$error":"#NAME?"}}]
[{"$f":"SUBTOTAL(3,$B$5:B91)","v":1},null,null,null,null,null,null,null,null,null,null,null,null,null,null,null,null,null,null,null,null,null,null,null,null,null,null,{"$error":"#NAME?"},{"$f":"ConvertDate(#REF!)","v":{"$error":"#NAME?"}},null,{"$f":"ConvertDate(#REF!)","v":{"$error":"#NAME?"}},null,null,null,{"$f":"ConvertDate(#REF!)","v":{"$error":"#NAME?"}}]
[{"$f":"SUBTOTAL(3,$B$5:B92)","v":1},null,null,null,null,null,null,null,null,null,null,null,null,null,null,null,null,null,null,null,null,null,null,null,null,null,null,{"$error":"#NAME?"},{"$f":"ConvertDate(#REF!)","v":{"$error":"#NAME?"}},null,{"$f":"ConvertDate(#REF!)","v":{"$error":"#NAME?"}},null,null,null,{"$f":"ConvertDate(#REF!)","v":{"$error":"#NAME?"}}]
[{"$f":"SUBTOTAL(3,$B$5:B93)","v":1},null,null,null,null,null,null,null,null,null,null,"مدير مشروع بيشة",null,null,null,null,null,null,null,null,null,null,null,null,null,null,null,{"$error":"#NAME?"},{"$f":"ConvertDate(#REF!)","v":{"$error":"#NAME?"}},null,{"$f":"ConvertDate(#REF!)","v":{"$error":"#NAME?"}},null,null,null,{"$f":"ConvertDate(#REF!)","v":{"$error":"#NAME?"}}]
[{"$f":"SUBTOTAL(3,$B$5:B94)","v":1},null,null,null,null,null,null,null,null,null,null,null,null,null,null,null,null,null,null,null,null,null,null,null,null,null,null,{"$error":"#NAME?"},{"$f":"ConvertDate(#REF!)","v":{"$error":"#NAME?"}},null,{"$f":"ConvertDate(#REF!)","v":{"$error":"#NAME?"}},null,null,null,{"$f":"ConvertDate(#REF!)","v":{"$error":"#NAME?"}}]
[{"$f":"SUBTOTAL(3,$B$5:B95)","v":1},null,null,null,null,null,null,null,null,null,null,null,null,null,null,null,null,null,null,null,null,null,null,null,null,null,null,{"$error":"#NAME?"},{"$f":"ConvertDate(#REF!)","v":{"$error":"#NAME?"}},null,{"$f":"ConvertDate(#REF!)","v":{"$error":"#NAME?"}},null,null,null,{"$f":"ConvertDate(#REF!)","v":{"$error":"#NAME?"}}]
[{"$f":"SUBTOTAL(3,$B$5:B96)","v":1},null,null,null,null,null,null,null,null,null,null,null,null,null,null,null,null,null,null,null,null,null,null,null,null,null,null,{"$error":"#NAME?"},{"$f":"ConvertDate(#REF!)","v":{"$error":"#NAME?"}},null,{"$f":"ConvertDate(#REF!)","v":{"$error":"#NAME?"}},null,null,null,{"$f":"ConvertDate(#REF!)","v":{"$error":"#NAME?"}}]
[{"$f":"SUBTOTAL(3,$B$5:B97)","v":1},null,null,null,null,null,null,null,null,null,null,"مقدم اجازة",null,null,null,null,null,null,null,null,null,null,null,null,null,null,null,{"$error":"#NAME?"},{"$f":"ConvertDate(#REF!)","v":{"$error":"#NAME?"}},null,{"$f":"ConvertDate(#REF!)","v":{"$error":"#NAME?"}},null,null,null,{"$f":"ConvertDate(#REF!)","v":{"$error":"#NAME?"}}]
[{"$f":"SUBTOTAL(3,$B$5:B98)","v":1},null,null,null,null,null,null,null,null,null,null,null,null,null,null,null,null,null,null,null,null,null,null,null,null,null,null,{"$error":"#NAME?"},{"$f":"ConvertDate(#REF!)","v":{"$error":"#NAME?"}},null,{"$f":"ConvertDate(#REF!)","v":{"$error":"#NAME?"}},null,null,null,{"$f":"ConvertDate(#REF!)","v":{"$error":"#NAME?"}}]
[{"$f":"SUBTOTAL(3,$B$5:B99)","v":1},null,null,null,null,null,null,null,null,null,null,null,null,null,null,null,null,null,null,null,null,null,null,null,null,null,null,{"$error":"#NAME?"},{"$f":"ConvertDate(#REF!)","v":{"$error":"#NAME?"}},null,{"$f":"ConvertDate(#REF!)","v":{"$error":"#NAME?"}},null,null,null,{"$f":"ConvertDate(#REF!)","v":{"$error":"#NAME?"}}]
[{"$f":"SUBTOTAL(3,$B$5:B100)","v":1},null,null,null,null,null,null,null,null,null,null,null,null,null,null,null,null,null,null,null,null,null,null,null,null,null,null,{"$f":"I98-AC101","v":{"$error":"#NAME?"}},{"$f":"ConvertDate(#REF!)","v":{"$error":"#NAME?"}},null,{"$f":"ConvertDate(#REF!)","v":{"$error":"#NAME?"}},null,null,null,{"$f":"ConvertDate(#REF!)","v":{"$error":"#NAME?"}}]
[{"$f":"SUBTOTAL(3,$B$5:B101)","v":1},null,null,null,null,null,null,null,null,null,null,null,null,null,null,null,null,null,null,null,null,null,null,null,null,null,null,{"$error":"#NAME?"},{"$f":"ConvertDate(#REF!)","v":{"$error":"#NAME?"}},null,{"$f":"ConvertDate(#REF!)","v":{"$error":"#NAME?"}},null,null,null,{"$f":"ConvertDate(#REF!)","v":{"$error":"#NAME?"}}]
[{"$f":"SUBTOTAL(3,$B$5:B102)","v":1},null,null,null,null,null,null,null,null,null,null,null,null,null,null,null,null,null,null,null,null,null,null,null,null,null,null,{"$error":"#NAME?"},{"$f":"ConvertDate(#REF!)","v":{"$error":"#NAME?"}},null,{"$f":"ConvertDate(#REF!)","v":{"$error":"#NAME?"}},null,null,null,{"$f":"ConvertDate(#REF!)","v":{"$error":"#NAME?"}}]
[{"$f":"SUBTOTAL(3,$B$5:B102)","v":1},null,null,null,null,null,null,null,null,null,null,null,null,null,null,null,null,null,null,null,null,null,null,null,null,null,null,{"$error":"#NAME?"},{"$f":"ConvertDate(#REF!)","v":{"$error":"#NAME?"}},null,{"$f":"ConvertDate(#REF!)","v":{"$error":"#NAME?"}},null,null,null,{"$f":"ConvertDate(#REF!)","v":{"$error":"#NAME?"}}]
[{"$f":"SUBTOTAL(3,$B$5:B102)","v":1},null,null,null,null,null,null,null,null,null,null,null,null,null,null,null,null,null,null,null,null,null,null,null,null,null,null,{"$error":"#NAME?"},{"$f":"ConvertDate(#REF!)","v":{"$error":"#NAME?"}},null,{"$f":"ConvertDate(#REF!)","v":{"$error":"#NAME?"}},null,null,null,{"$f":"ConvertDate(#REF!)","v":{"$error":"#NAME?"}}]
[{"$f":"SUBTOTAL(3,$B$5:B103)","v":1},null,null,null,null,null,null,null,null,null,null,null,null,null,null,null,null,null,null,null,null,null,null,null,null,null,null,{"$error":"#NAME?"},{"$f":"ConvertDate(#REF!)","v":{"$error":"#NAME?"}},null,{"$f":"ConvertDate(#REF!)","v":{"$error":"#NAME?"}},null,null,null,{"$f":"ConvertDate(#REF!)","v":{"$error":"#NAME?"}}]
[{"$f":"SUBTOTAL(3,$B$5:B104)","v":1},null,null,null,null,null,null,null,null,null,null,null,null,null,null,null,null,null,null,null,null,null,null,null,null,null,null,{"$error":"#NAME?"},{"$f":"ConvertDate(#REF!)","v":{"$error":"#NAME?"}},null,{"$f":"ConvertDate(#REF!)","v":{"$error":"#NAME?"}},null,null,null,{"$f":"ConvertDate(#REF!)","v":{"$error":"#NAME?"}}]
[{"$f":"SUBTOTAL(3,$B$5:B105)","v":1},null,null,null,null,null,null,null,null,null,null,null,null,null,null,null,null,null,null,null,null,null,null,null,null,null,null,{"$error":"#NAME?"},{"$f":"ConvertDate(#REF!)","v":{"$error":"#NAME?"}},null,{"$f":"ConvertDate(#REF!)","v":{"$error":"#NAME?"}},null,null,null,{"$f":"ConvertDate(#REF!)","v":{"$error":"#NAME?"}}]
[{"$f":"SUBTOTAL(3,$B$5:B106)","v":1},null,null,null,null,null,null,null,null,null,null,null,null,null,null,null,null,null,null,null,null,null,null,null,null,null,null,{"$error":"#NAME?"},{"$f":"ConvertDate(#REF!)","v":{"$error":"#NAME?"}},null,{"$f":"ConvertDate(#REF!)","v":{"$error":"#NAME?"}},null,null,null,{"$f":"ConvertDate(#REF!)","v":{"$error":"#NAME?"}}]
[{"$f":"SUBTOTAL(3,$B$5:B107)","v":1},null,null,null,null,null,null,null,null,null,null,null,null,null,null,null,null,null,null,null,null,null,null,null,null,null,null,{"$error":"#NAME?"},{"$f":"ConvertDate(#REF!)","v":{"$error":"#NAME?"}},null,{"$f":"ConvertDate(#REF!)","v":{"$error":"#NAME?"}},null,null,null,{"$f":"ConvertDate(#REF!)","v":{"$error":"#NAME?"}}]
[{"$f":"SUBTOTAL(3,$B$5:B108)","v":1},null,null,null,null,null,null,null,null,null,null,null,null,null,null,null,null,null,null,null,null,null,null,null,null,null,null,{"$error":"#NAME?"},{"$f":"ConvertDate(#REF!)","v":{"$error":"#NAME?"}},null,{"$f":"ConvertDate(#REF!)","v":{"$error":"#NAME?"}},null,null,null,{"$f":"ConvertDate(#REF!)","v":{"$error":"#NAME?"}}]
[{"$f":"SUBTOTAL(3,$B$5:B109)","v":1},null,null,null,null,null,null,null,null,null,null,null,null,null,null,null,null,null,null,null,null,null,null,null,null,null,null,{"$error":"#NAME?"},{"$f":"ConvertDate(#REF!)","v":{"$error":"#NAME?"}},null,{"$f":"ConvertDate(#REF!)","v":{"$error":"#NAME?"}},null,null,null,{"$f":"ConvertDate(#REF!)","v":{"$error":"#NAME?"}}]
[{"$f":"SUBTOTAL(3,$B$5:B110)","v":1},null,null,null,null,null,null,null,null,null,null,"إجازة",null,null,null,null,null,null,null,null,null,null,null,null,null,null,null,{"$error":"#NAME?"},{"$f":"ConvertDate(#REF!)","v":{"$error":"#NAME?"}},null,{"$f":"ConvertDate(#REF!)","v":{"$error":"#NAME?"}},null,null,null,{"$f":"ConvertDate(#REF!)","v":{"$error":"#NAME?"}}]
[{"$f":"SUBTOTAL(3,$B$5:B111)","v":1},null,null,null,null,null,null,null,null,null,null,null,null,null,null,null,null,null,null,null,null,null,null,null,null,null,null,{"$error":"#NAME?"},{"$f":"ConvertDate(#REF!)","v":{"$error":"#NAME?"}},null,{"$f":"ConvertDate(#REF!)","v":{"$error":"#NAME?"}},null,null,null,{"$f":"ConvertDate(#REF!)","v":{"$error":"#NAME?"}}]
[{"$f":"SUBTOTAL(3,$B$5:B112)","v":1},null,null,null,null,null,null,null,null,null,null,null,null,null,null,null,null,null,null,null,null,null,null,null,null,null,null,{"$error":"#NAME?"},{"$f":"ConvertDate(#REF!)","v":{"$error":"#NAME?"}},null,{"$f":"ConvertDate(#REF!)","v":{"$error":"#NAME?"}},null,null,null,{"$f":"ConvertDate(#REF!)","v":{"$error":"#NAME?"}}]
[{"$f":"SUBTOTAL(3,$B$5:B113)","v":1},null,null,null,null,null,null,null,null,null,null,null,null,null,null,null,null,null,null,null,null,null,null,null,null,null,null,{"$error":"#NAME?"},{"$f":"ConvertDate(#REF!)","v":{"$error":"#NAME?"}},null,{"$f":"ConvertDate(#REF!)","v":{"$error":"#NAME?"}},null,null,null,{"$f":"ConvertDate(#REF!)","v":{"$error":"#NAME?"}}]
[{"$f":"SUBTOTAL(3,$B$5:B114)","v":1},null,null,null,null,null,null,null,null,null,null,null,null,null,null,null,null,null,null,null,null,null,null,null,null,null,null,{"$error":"#NAME?"},{"$f":"ConvertDate(#REF!)","v":{"$error":"#NAME?"}},null,{"$f":"ConvertDate(#REF!)","v":{"$error":"#NAME?"}},null,null,null,{"$f":"ConvertDate(#REF!)","v":{"$error":"#NAME?"}}]
[{"$f":"SUBTOTAL(3,$B$5:B115)","v":1},null,null,null,null,null,null,null,null,null,null,null,null,null,null,null,null,null,null,null,null,null,null,null,null,null,null,{"$error":"#NAME?"},{"$f":"ConvertDate(#REF!)","v":{"$error":"#NAME?"}},null,{"$f":"ConvertDate(#REF!)","v":{"$error":"#NAME?"}},null,null,null,{"$f":"ConvertDate(#REF!)","v":{"$error":"#NAME?"}}]
[{"$f":"SUBTOTAL(3,$B$5:B116)","v":1},null,null,null,null,null,null,null,null,null,null,null,null,null,null,null,null,null,null,null,null,null,null,null,null,null,null,{"$error":"#NAME?"},{"$f":"ConvertDate(#REF!)","v":{"$error":"#NAME?"}},null,{"$f":"ConvertDate(#REF!)","v":{"$error":"#NAME?"}},null,null,null,{"$f":"ConvertDate(#REF!)","v":{"$error":"#NAME?"}}]
[{"$f":"SUBTOTAL(3,$B$5:B117)","v":1},null,null,null,null,null,null,null,null,null,null,null,null,null,null,null,null,null,null,null,null,null,null,null,null,null,null,{"$error":"#NAME?"},{"$f":"ConvertDate(#REF!)","v":{"$error":"#NAME?"}},null,{"$f":"ConvertDate(#REF!)","v":{"$error":"#NAME?"}},null,null,null,{"$f":"ConvertDate(#REF!)","v":{"$error":"#NAME?"}}]
[{"$f":"SUBTOTAL(3,$B$5:B118)","v":1},null,null,null,null,null,null,null,null,null,null,null,null,null,null,null,null,null,null,null,null,null,null,null,null,null,null,{"$error":"#NAME?"},{"$f":"ConvertDate(#REF!)","v":{"$error":"#NAME?"}},null,{"$f":"ConvertDate(#REF!)","v":{"$error":"#NAME?"}},null,null,null,{"$f":"ConvertDate(#REF!)","v":{"$error":"#NAME?"}}]
[{"$f":"SUBTOTAL(3,$B$5:B119)","v":1},null,null,null,null,null,null,null,null,null,null,null,null,null,null,null,null,null,null,null,null,null,null,null,null,null,null,{"$error":"#NAME?"},{"$f":"ConvertDate(#REF!)","v":{"$error":"#NAME?"}},null,{"$f":"ConvertDate(#REF!)","v":{"$error":"#NAME?"}},null,null,null,{"$f":"ConvertDate(#REF!)","v":{"$error":"#NAME?"}}]
[{"$f":"SUBTOTAL(3,$B$5:B120)","v":1},null,null,null,null,null,null,null,null,null,null,null,null,null,null,null,null,null,null,null,null,null,null,null,null,null,null,{"$error":"#NAME?"},{"$f":"ConvertDate(#REF!)","v":{"$error":"#NAME?"}},null,{"$f":"ConvertDate(#REF!)","v":{"$error":"#NAME?"}},null,null,null,{"$f":"ConvertDate(#REF!)","v":{"$error":"#NAME?"}}]
[{"$f":"SUBTOTAL(3,$B$5:B121)","v":1},null,null,null,null,null,null,null,null,null,null,null,null,null,null,null,null,null,null,null,null,null,null,null,null,null,null,{"$error":"#NAME?"},{"$f":"ConvertDate(#REF!)","v":{"$error":"#NAME?"}},null,{"$f":"ConvertDate(#REF!)","v":{"$error":"#NAME?"}},null,null,null,{"$f":"ConvertDate(#REF!)","v":{"$error":"#NAME?"}}]
[{"$f":"SUBTOTAL(3,$B$5:B122)","v":1},null,null,null,null,null,null,null,null,null,null,"لعب مش جد",null,null,null,null,null,null,null,null,null,null,null,null,null,null,null,{"$error":"#NAME?"},{"$f":"ConvertDate(#REF!)","v":{"$error":"#NAME?"}},null,{"$f":"ConvertDate(#REF!)","v":{"$error":"#NAME?"}},null,null,null,{"$f":"ConvertDate(#REF!)","v":{"$error":"#NAME?"}}]
[{"$f":"SUBTOTAL(3,$B$5:B123)","v":1},null,null,null,null,null,null,null,null,null,null,"الرخصة منتهية",null,null,null,null,null,null,null,null,null,null,null,null,null,null,null,{"$error":"#NAME?"},{"$f":"ConvertDate(#REF!)","v":{"$error":"#NAME?"}},null,{"$f":"ConvertDate(#REF!)","v":{"$error":"#NAME?"}},null,null,null,{"$f":"ConvertDate(#REF!)","v":{"$error":"#NAME?"}}]
[{"$f":"SUBTOTAL(3,$B$5:B124)","v":1},null,null,null,null,null,null,null,null,null,null,null,null,null,null,null,null,null,null,null,null,null,null,null,null,null,null,{"$error":"#NAME?"},{"$f":"ConvertDate(#REF!)","v":{"$error":"#NAME?"}},null,{"$f":"ConvertDate(#REF!)","v":{"$error":"#NAME?"}},null,null,null,{"$f":"ConvertDate(#REF!)","v":{"$error":"#NAME?"}}]
[{"$f":"SUBTOTAL(3,$B$5:B125)","v":1},null,null,null,null,null,null,null,null,null,null,null,null,null,null,null,null,null,null,null,null,null,null,null,null,null,null,{"$error":"#NAME?"},{"$f":"ConvertDate(#REF!)","v":{"$error":"#NAME?"}},null,{"$f":"ConvertDate(#REF!)","v":{"$error":"#NAME?"}},null,null,null,{"$f":"ConvertDate(#REF!)","v":{"$error":"#NAME?"}}]
[{"$f":"SUBTOTAL(3,$B$5:B126)","v":1},null,null,null,null,null,null,null,null,null,null,null,null,null,null,null,null,null,null,null,null,null,null,null,null,null,null,{"$error":"#NAME?"},{"$f":"ConvertDate(#REF!)","v":{"$error":"#NAME?"}},null,{"$f":"ConvertDate(#REF!)","v":{"$error":"#NAME?"}},null,null,null,{"$f":"ConvertDate(#REF!)","v":{"$error":"#NAME?"}}]
[{"$f":"SUBTOTAL(3,$B$5:B127)","v":1},null,null,null,null,null,null,null,null,null,null,null,null,null,null,null,null,null,null,null,null,null,null,null,null,null,null,{"$error":"#NAME?"},{"$f":"ConvertDate(#REF!)","v":{"$error":"#NAME?"}},null,{"$f":"ConvertDate(#REF!)","v":{"$error":"#NAME?"}},null,null,null,{"$f":"ConvertDate(#REF!)","v":{"$error":"#NAME?"}}]
[{"$f":"SUBTOTAL(3,$B$5:B128)","v":1},null,null,null,null,null,null,null,null,null,null,null,null,null,null,null,null,null,null,null,null,null,null,null,null,null,null,{"$error":"#NAME?"},{"$f":"ConvertDate(#REF!)","v":{"$error":"#NAME?"}},null,{"$f":"ConvertDate(#REF!)","v":{"$error":"#NAME?"}},null,null,null,{"$f":"ConvertDate(#REF!)","v":{"$error":"#NAME?"}}]
[{"$f":"SUBTOTAL(3,$B$5:B129)","v":1},null,null,null,null,null,null,null,null,null,null,null,null,null,null,null,null,null,null,null,null,null,null,null,null,null,null,{"$error":"#NAME?"},{"$f":"ConvertDate(#REF!)","v":{"$error":"#NAME?"}},null,{"$f":"ConvertDate(#REF!)","v":{"$error":"#NAME?"}},null,null,null,{"$f":"ConvertDate(#REF!)","v":{"$error":"#NAME?"}}]
[{"$f":"SUBTOTAL(3,$B$5:B130)","v":1},null,null,null,null,null,null,null,null,null,null,null,null,null,null,null,null,null,null,null,null,null,null,null,null,null,null,{"$f":"I130-AC133","v":{"$error":"#NAME?"}},{"$f":"ConvertDate(#REF!)","v":{"$error":"#NAME?"}},null,{"$f":"ConvertDate(#REF!)","v":{"$error":"#NAME?"}},null,null,null,{"$f":"ConvertDate(#REF!)","v":{"$error":"#NAME?"}}]
[{"$f":"SUBTOTAL(3,$B$5:B131)","v":1},null,null,null,null,null,null,null,null,null,null,null,null,null,null,null,null,null,null,null,null,null,null,null,null,null,null,{"$error":"#NAME?"},{"$f":"ConvertDate(#REF!)","v":{"$error":"#NAME?"}},null,{"$f":"ConvertDate(#REF!)","v":{"$error":"#NAME?"}},null,null,null,{"$f":"ConvertDate(#REF!)","v":{"$error":"#NAME?"}}]
[{"$f":"SUBTOTAL(3,$B$5:B132)","v":1},null,null,null,null,null,null,null,null,null,null,null,null,null,null,null,null,null,null,null,null,null,null,null,null,null,null,{"$error":"#NAME?"},{"$f":"ConvertDate(#REF!)","v":{"$error":"#NAME?"}},null,{"$f":"ConvertDate(#REF!)","v":{"$error":"#NAME?"}},null,null,null,{"$f":"ConvertDate(#REF!)","v":{"$error":"#NAME?"}}]
[{"$f":"SUBTOTAL(3,$B$5:B133)","v":1},null,null,null,null,null,null,null,null,null,null,null,null,null,null,null,null,null,null,null,null,null,null,null,null,null,null,{"$error":"#NAME?"},{"$f":"ConvertDate(#REF!)","v":{"$error":"#NAME?"}},null,{"$f":"ConvertDate(#REF!)","v":{"$error":"#NAME?"}},null,null,null,{"$f":"ConvertDate(#REF!)","v":{"$error":"#NAME?"}}]
[{"$f":"SUBTOTAL(3,$B$5:B134)","v":1},null,null,null,null,null,null,null,null,null,null,null,null,null,null,null,null,null,null,null,null,null,null,null,null,null,null,{"$error":"#NAME?"},{"$f":"ConvertDate(#REF!)","v":{"$error":"#NAME?"}},null,{"$f":"ConvertDate(#REF!)","v":{"$error":"#NAME?"}},null,null,null,{"$f":"ConvertDate(#REF!)","v":{"$error":"#NAME?"}}]
[{"$f":"SUBTOTAL(3,$B$5:B135)","v":1},null,null,null,null,null,null,null,null,null,null,null,null,null,null,null,null,null,null,null,null,null,null,null,null,null,null,{"$error":"#NAME?"},{"$f":"ConvertDate(#REF!)","v":{"$error":"#NAME?"}},null,{"$f":"ConvertDate(#REF!)","v":{"$error":"#NAME?"}},null,null,null,{"$f":"ConvertDate(#REF!)","v":{"$error":"#NAME?"}}]
[{"$f":"SUBTOTAL(3,$B$5:B136)","v":1},null,null,null,null,null,null,null,null,null,null,null,null,null,null,null,null,null,null,null,null,null,null,null,null,null,null,{"$error":"#NAME?"},{"$f":"ConvertDate(#REF!)","v":{"$error":"#NAME?"}},null,{"$f":"ConvertDate(#REF!)","v":{"$error":"#NAME?"}},null,null,null,{"$f":"ConvertDate(#REF!)","v":{"$error":"#NAME?"}}]
[{"$f":"SUBTOTAL(3,$B$5:B137)","v":1},null,null,null,null,null,null,null,null,null,null,null,null,null,null,null,null,null,null,null,null,null,null,null,null,null,null,{"$error":"#NAME?"},{"$f":"ConvertDate(#REF!)","v":{"$error":"#NAME?"}},null,{"$f":"ConvertDate(#REF!)","v":{"$error":"#NAME?"}},null,null,null,{"$f":"ConvertDate(#REF!)","v":{"$error":"#NAME?"}}]
[{"$f":"SUBTOTAL(3,$B$5:B138)","v":1},null,null,null,null,null,null,null,null,null,null,null,null,null,null,null,null,null,null,null,null,null,null,null,null,null,null,{"$error":"#NAME?"},{"$f":"ConvertDate(#REF!)","v":{"$error":"#NAME?"}},null,{"$f":"ConvertDate(#REF!)","v":{"$error":"#NAME?"}},null,null,null,{"$f":"ConvertDate(#REF!)","v":{"$error":"#NAME?"}}]
[{"$f":"SUBTOTAL(3,$B$5:B139)","v":1},null,null,null,null,null,null,null,null,null,null,null,null,null,null,null,null,null,null,null,null,null,null,null,null,null,null,{"$error":"#NAME?"},{"$f":"ConvertDate(#REF!)","v":{"$error":"#NAME?"}},null,{"$f":"ConvertDate(#REF!)","v":{"$error":"#NAME?"}},null,null,null,{"$f":"ConvertDate(#REF!)","v":{"$error":"#NAME?"}}]
[{"$f":"SUBTOTAL(3,$B$5:B140)","v":1},null,null,null,null,null,null,null,null,null,null,null,null,null,null,null,null,null,null,null,null,null,null,null,null,null,null,{"$error":"#NAME?"},{"$f":"ConvertDate(#REF!)","v":{"$error":"#NAME?"}},null,{"$f":"ConvertDate(#REF!)","v":{"$error":"#NAME?"}},null,null,null,{"$f":"ConvertDate(#REF!)","v":{"$error":"#NAME?"}}]
[{"$f":"SUBTOTAL(3,$B$5:B141)","v":1},null,null,null,null,null,null,null,null,null,null,null,null,null,null,null,null,null,null,null,null,null,null,null,null,null,null,{"$error":"#NAME?"},{"$f":"ConvertDate(#REF!)","v":{"$error":"#NAME?"}},null,{"$f":"ConvertDate(#REF!)","v":{"$error":"#NAME?"}},null,null,null,{"$f":"ConvertDate(#REF!)","v":{"$error":"#NAME?"}}]
[{"$f":"SUBTOTAL(3,$B$5:B142)","v":1},null,null,null,null,null,null,null,null,null,null,null,null,null,null,null,null,null,null,null,null,null,null,null,null,null,null,{"$error":"#NAME?"},{"$f":"ConvertDate(#REF!)","v":{"$error":"#NAME?"}},null,{"$f":"ConvertDate(#REF!)","v":{"$error":"#NAME?"}},null,null,null,{"$f":"ConvertDate(#REF!)","v":{"$error":"#NAME?"}}]
[{"$f":"SUBTOTAL(3,$B$5:B143)","v":1},null,null,null,null,null,null,null,null,null,null,null,null,null,null,null,null,null,null,null,null,null,null,null,null,null,null,{"$error":"#NAME?"},{"$f":"ConvertDate(#REF!)","v":{"$error":"#NAME?"}},null,{"$f":"ConvertDate(#REF!)","v":{"$error":"#NAME?"}},null,null,null,{"$f":"ConvertDate(#REF!)","v":{"$error":"#NAME?"}}]
[{"$f":"SUBTOTAL(3,$B$5:B144)","v":1},null,null,null,null,null,null,null,null,null,null,null,null,null,null,null,null,null,null,null,null,null,null,null,null,null,null,{"$error":"#NAME?"},{"$f":"ConvertDate(#REF!)","v":{"$error":"#NAME?"}},null,{"$f":"ConvertDate(#REF!)","v":{"$error":"#NAME?"}},null,null,null,{"$f":"ConvertDate(#REF!)","v":{"$error":"#NAME?"}}]
[{"$f":"SUBTOTAL(3,$B$5:B145)","v":1},null,null,null,null,null,null,null,null,null,null,null,null,null,null,null,null,null,null,null,null,null,null,null,null,null,null,{"$error":"#NAME?"},{"$f":"ConvertDate(#REF!)","v":{"$error":"#NAME?"}},null,{"$f":"ConvertDate(#REF!)","v":{"$error":"#NAME?"}},null,null,null,{"$f":"ConvertDate(#REF!)","v":{"$error":"#NAME?"}}]
[{"$f":"SUBTOTAL(3,$B$5:B146)","v":1},null,null,null,null,null,null,null,null,null,null,null,null,null,null,null,null,null,null,null,null,null,null,null,null,null,null,{"$error":"#NAME?"},{"$f":"ConvertDate(#REF!)","v":{"$error":"#NAME?"}},null,{"$f":"ConvertDate(#REF!)","v":{"$error":"#NAME?"}},null,null,null,{"$f":"ConvertDate(#REF!)","v":{"$error":"#NAME?"}}]
[{"$f":"SUBTOTAL(3,$B$5:B147)","v":1},null,null,null,null,null,null,null,null,null,null,null,null,null,null,null,null,null,null,null,null,null,null,null,null,null,null,{"$error":"#NAME?"},{"$f":"ConvertDate(#REF!)","v":{"$error":"#NAME?"}},null,{"$f":"ConvertDate(#REF!)","v":{"$error":"#NAME?"}},null,null,null,{"$f":"ConvertDate(#REF!)","v":{"$error":"#NAME?"}}]
[{"$f":"SUBTOTAL(3,$B$5:B148)","v":1},null,null,null,null,null,null,null,null,null,null,null,null,null,null,null,null,null,null,null,null,null,null,null,null,null,null,{"$error":"#NAME?"},{"$f":"ConvertDate(#REF!)","v":{"$error":"#NAME?"}},null,{"$f":"ConvertDate(#REF!)","v":{"$error":"#NAME?"}},null,null,null,{"$f":"ConvertDate(#REF!)","v":{"$error":"#NAME?"}}]
[{"$f":"SUBTOTAL(3,$B$5:B149)","v":1},{"$f":"SUBTOTAL(103,Alldata[كود المعدة])","v":1},{"$f":"SUBTOTAL(103,Alldata[الرقم التسلسلي])","v":1},{"$f":"SUBTOTAL(103,Alldata[الموقع])","v":1},{"$f":"SUBTOTAL(103,Alldata[وصف الاصل])","v":1},{"$f":"SUBTOTAL(103,Alldata[الموديل])","v":1},{"$f":"SUBTOTAL(103,Alldata[اللون])","v":1},{"$f":"SUBTOTAL(103,Alldata[رقم اللوحة])","v":1},{"$f":"SUBTOTAL(103,Alldata[رقم الهيكل])","v":1},{"$f":"SUBTOTAL(103,Alldata[المالك])","v":1},{"$f":"SUBTOTAL(103,Alldata[الترخيص])","v":1},{"$f":"SUBTOTAL(103,Alldata[ملاحظات])","v":5},null,null,null,null,null,null,null,null,null,null,null,null,null,null,null,{"$error":"#NAME?"},{"$f":"ConvertDate(#REF!)","v":{"$error":"#NAME?"}},null,{"$f":"ConvertDate(#REF!)","v":{"$error":"#NAME?"}},null,null,null,{"$f":"ConvertDate(#REF!)","v":{"$error":"#NAME?"}}]
[{"$f":"SUBTOTAL(3,$B$5:B150)","v":1}]
[{"$f":"SUBTOTAL(3,$B$5:B151)","v":1}]